fUST/lending_fUST_20260228
["ID","MTS","AMOUNT","RATE_DAILY","PERIOD"]
[406897469,1772267522660,-500.0,0.00016712,2]
[406897470,1772267522670,-1001.72,0.00016712,2]
[406897471,1772267522680,-1059.56,0.00016712,2]
[406897472,1772267522690,-627.88,0.00016712,2]
[406897473,1772267522699,-500.0,0.00016712,2]
[406897474,1772267522708,-917.08,0.00016712,2]
[406897475,1772267522718,-500.0,0.00016712,2]
[406897476,1772267522860,-156.54683719,0.00016712,2]
[406897477,1772267522870,-529.27,0.00016712,2]
[406897478,1772267522880,-927.57,0.00016712,2]
[406897479,1772267522889,-650.87,0.00016712,2]
[406897480,1772267522899,-661.99,0.00016712,2]
[406897481,1772267522909,-500.0,0.00016712,2]
[406897482,1772267522918,-500.0,0.00016712,2]
[406897483,1772267522928,-1219.63,0.00016712,2]
[406897484,1772267522937,-818.16,0.00016712,2]
[406897485,1772267522947,-564.11,0.00016712,2]
[406897486,1772267522956,-500.0,0.00016712,2]
[406897487,1772267522966,-340.99201492,0.00016712,2]
[406897488,1772267522975,-500.0,0.00016712,2]
[406897489,1772267522985,-500.0,0.00016712,2]
[406897490,1772267522995,-773.68,0.00016712,2]
[406897491,1772267523005,-500.0,0.00016712,2]
[406897492,1772267523016,-1058.67,0.00016712,2]
[406897493,1772267523026,-544.13,0.00016712,2]
[406897494,1772267523036,-500.0,0.00016712,2]
[406897495,1772267523046,-1354.43,0.00016712,2]
[406897496,1772267523056,-500.0,0.00016712,2]
[406897497,1772267523065,-500.0,0.00016712,2]
[406897498,1772267523075,-947.35,0.00016712,2]
[406897499,1772267523086,-500.0,0.00016712,2]
[406897500,1772267523095,-617.88,0.00016712,2]
[406897501,1772267523105,-577.2,0.00016712,2]
[406897502,1772267523115,-1264.55,0.00016712,2]
[406897503,1772267523125,-609.45,0.00016712,2]
[406897504,1772267523139,-410.34707161,0.00016712,2]
[406897505,1772267523148,-787.95,0.00016712,2]
[406897506,1772267523158,-1665.88,0.00016712,2]
[406897507,1772267523168,-571.43,0.00016712,2]
[406897508,1772267523179,-500.0,0.00016712,2]
[406897509,1772267523191,-7573.22,0.00016712,2]
[406897510,1772267523201,-554.61,0.00016712,2]
[406897511,1772267523210,-500.0,0.00016712,2]
[406897512,1772267523220,-500.0,0.00016712,2]
[406897513,1772267523230,-500.0,0.00016712,2]
[406897514,1772267523239,-1743.64,0.00016712,2]
[406897515,1772267523249,-2006.98,0.00016712,2]
[406897516,1772267523258,-647.16,0.00016712,2]
[406897517,1772267523269,-2108.79,0.00016712,2]
[406897518,1772267523278,-839.36,0.00016712,2]
[406897519,1772267523287,-878.12,0.00016712,2]
[406897520,1772267523296,-7180.71,0.00016712,2]
[406897521,1772267523306,-784.54,0.00016712,2]
[406897522,1772267523315,-696.62,0.00016712,2]
[406897523,1772267523325,-854.66,0.00016712,2]
[406897524,1772267523334,-1726.59,0.00016712,2]
[406897525,1772267523344,-500.0,0.00016712,2]
[406897526,1772267523354,-1075.35,0.00016712,2]
[406897527,1772267523363,-5780.22,0.00016712,2]
[406897528,1772267523373,-1052.35,0.00016712,2]
[406897529,1772267523382,-1604.1,0.00016712,2]
[406897530,1772267523392,-617.93,0.00016712,2]
[406897531,1772267523402,-1438.35,0.00016712,2]
[406897532,1772267523412,-637.03368358,0.00016712,2]
[406897533,1772267523421,-500.0,0.00016712,2]
[406897534,1772267523431,-1671.97,0.00016712,2]
[406897535,1772267523442,-500.0,0.00016712,2]
[406897536,1772267523451,-500.0,0.00016712,2]
[406897537,1772267523461,-566.35,0.00016712,2]
[406897538,1772267523471,-695.06,0.00016712,2]
[406897539,1772267523481,-692.56,0.00016712,2]
[406897540,1772267523490,-1703.31,0.00016712,2]
[406897541,1772267523500,-1091.8,0.00016712,2]
[406897542,1772267523509,-526.21,0.00016712,2]
[406897543,1772267523518,-1946.78,0.00016712,2]
[406897544,1772267523528,-1093.05,0.00016712,2]
[406897545,1772267523537,-522.9,0.00016712,2]
[406897546,1772267523547,-1010.99,0.00016712,2]
[406897547,1772267523557,-597.64,0.00016712,2]
[406897548,1772267523566,-632.06,0.00016712,2]
[406897549,1772267523577,-1404.24,0.00016712,2]
[406897550,1772267523586,-3447.77,0.00016712,2]
[406897551,1772267523596,-500.0,0.00016712,2]
[406897552,1772267523606,-592.02,0.00016712,2]
[406897553,1772267523616,-500.0,0.00016712,2]
[406897554,1772267523626,-500.0,0.00016712,2]
[406897555,1772267523636,-1639.95,0.00016712,2]
[406897556,1772267523646,-500.0,0.00016712,2]
[406897557,1772267523656,-766.57,0.00016712,2]
[406897558,1772267523666,-2199.16,0.00016712,2]
[406897559,1772267523676,-341.73044303,0.00016712,2]
[406897560,1772267523686,-515.11,0.00016712,2]
[406897561,1772267523696,-1033.14,0.00016712,2]
[406897562,1772267523707,-1309.19,0.00016712,2]
[406897563,1772267523717,-1688.18,0.00016712,2]
[406897564,1772267523727,-3009.71,0.00016712,2]
[406897565,1772267523737,-1567.57,0.00016712,2]
[406897566,1772267523746,-500.0,0.00016712,2]
[406897567,1772267523756,-1039.64,0.00016712,2]
[406897568,1772267523767,-500.0,0.00016712,2]
[406897569,1772267523777,-578.85,0.00016712,2]
[406897570,1772267523786,-500.0,0.00016712,2]
[406897571,1772267523795,-2382.93,0.00016712,2]
[406897572,1772267523805,-2151.2,0.00016712,2]
[406897573,1772267523815,-1096.15,0.00016712,2]
[406897574,1772267523823,-683.72,0.00016712,2]
[406897575,1772267523833,-832.49,0.00016712,2]
[406897576,1772267523843,-692.6,0.00016712,2]
[406897577,1772267523852,-500.0,0.00016712,2]
[406897578,1772267523870,-3399.35,0.00016712,2]
[406897579,1772267523891,-865.62,0.00016712,2]
[406897580,1772267523909,-929.25,0.00016712,2]
[406897581,1772267523928,-856.18,0.00016712,2]
[406897582,1772267523949,-1271.22,0.00016712,2]
[406897583,1772267523967,-1063.54,0.00016712,2]
[406897584,1772267523984,-1318.72,0.00016712,2]
[406897585,1772267524000,-705.79,0.00016712,2]
[406897586,1772267524014,-2424.89,0.00016712,2]
[406897587,1772267524032,-1446.29,0.00016712,2]
[406897588,1772267524051,-500.0,0.00016712,2]
[406897589,1772267524070,-2361.52,0.00016712,2]
[406897590,1772267524082,-500.0,0.00016712,2]
[406897591,1772267524103,-4592.95,0.00016712,2]
[406897592,1772267524118,-2215.2,0.00016712,2]
[406897593,1772267524133,-1435.8,0.00016712,2]
[406897594,1772267524149,-1576.84,0.00016712,2]
[406897595,1772267524164,-2561.33,0.00016712,2]
[406897596,1772267524179,-1085.51,0.00016712,2]
[406897597,1772267524193,-500.0,0.00016712,2]
[406897598,1772267524208,-500.0,0.00016712,2]
[406897599,1772267524225,-717.42,0.00016712,2]
[406897600,1772267524239,-1108.2,0.00016712,2]
[406897601,1772267524255,-500.0,0.00016712,2]
[406897602,1772267524270,-3100.42,0.00016712,2]
[406897603,1772267524284,-1341.93,0.00016712,2]
[406897604,1772267524298,-1305.67,0.00016712,2]
[406897605,1772267524313,-500.0,0.00016712,2]
[406897606,1772267524327,-1472.57,0.00016712,2]
[406897607,1772267524341,-561.98,0.00016712,2]
[406897608,1772267524356,-3197.66,0.00016712,2]
[406897609,1772267524371,-615.34,0.00016712,2]
[406897610,1772267524386,-699.96,0.00016712,2]
[406897611,1772267524400,-500.0,0.00016712,2]
[406897612,1772267524415,-1020.13,0.00016712,2]
[406897613,1772267524430,-500.0,0.00016712,2]
[406897614,1772267524445,-596.63,0.00016712,2]
[406897615,1772267524459,-500.0,0.00016712,2]
[406897616,1772267524474,-1033.36,0.00016712,2]
[406897617,1772267524489,-500.0,0.00016712,2]
[406897618,1772267524505,-500.0,0.00016712,2]
[406897619,1772267524523,-2312.35,0.00016712,2]
[406897620,1772267524538,-955.01,0.00016712,2]
[406897621,1772267524553,-806.51,0.00016712,2]
[406897622,1772267524568,-1522.66,0.00016712,2]
[406897623,1772267524582,-500.0,0.00016712,2]
[406897624,1772267524597,-867.0,0.00016712,2]
[406897625,1772267524613,-7146.16,0.00016712,2]
[406897626,1772267524628,-500.0,0.00016712,2]
[406897627,1772267524643,-500.0,0.00016712,2]
[406897628,1772267524657,-1028.35,0.00016712,2]
[406897629,1772267524672,-500.0,0.00016712,2]
[406897630,1772267524686,-1008.96,0.00016712,2]
[406897631,1772267524701,-615.39887541,0.00016712,2]
[406897632,1772267524716,-1352.59,0.00016712,2]
[406897633,1772267524731,-506.03,0.00016712,2]
[406897634,1772267524746,-500.0,0.00016712,2]
[406897635,1772267524761,-500.0,0.00016712,2]
[406897636,1772267524775,-500.0,0.00016712,2]
[406897637,1772267524790,-764.41,0.00016712,2]
[406897638,1772267524805,-500.0,0.00016712,2]
[406897639,1772267524819,-1761.81,0.00016712,2]
[406897640,1772267524833,-2215.04,0.00016712,2]
[406897641,1772267524848,-517.41,0.00016712,2]
[406897642,1772267524863,-517.59,0.00016712,2]
[406897643,1772267524876,-500.0,0.00016712,2]
[406897644,1772267524890,-500.0,0.00016712,2]
[406897645,1772267524906,-963.32,0.00016712,2]
[406897646,1772267524923,-700.0,0.00016712,2]
[406897647,1772267524937,-899.12,0.00016712,2]
[406897648,1772267524951,-1300.35,0.00016712,2]
[406897649,1772267524967,-5319.48,0.00016712,2]
[406897650,1772267524982,-1252.77,0.00016712,2]
[406897651,1772267524996,-587.74,0.00016712,2]
[406897652,1772267525011,-1166.63,0.00016712,2]
[406897653,1772267525026,-899.07,0.00016712,2]
[406897654,1772267525041,-2895.24,0.00016712,2]
[406897655,1772267525056,-1068.48,0.00016712,2]
[406897656,1772267525071,-968.49,0.00016712,2]
[406897657,1772267525086,-500.0,0.00016712,2]
[406897658,1772267525102,-2416.57,0.00016712,2]
[406897659,1772267525122,-1587.58,0.00016712,2]
[406897660,1772267525139,-647.96,0.00016712,2]
[406897661,1772267525154,-8070.28,0.00016712,2]
[406897662,1772267525169,-731.15,0.00016712,2]
[406897663,1772267525186,-500.0,0.00016712,2]
[406897664,1772267525202,-500.0,0.00016712,2]
[406897665,1772267525219,-1997.06,0.00016712,2]
[406897666,1772267525234,-3186.98,0.00016712,2]
[406897667,1772267525249,-3896.0,0.00016712,2]
[406897668,1772267525263,-500.0,0.00016712,2]
[406897669,1772267525278,-527.94,0.00016712,2]
[406897670,1772267525293,-989.6,0.00016712,2]
[406897671,1772267525308,-500.0,0.00016712,2]
[406897672,1772267525323,-7025.66,0.00016712,2]
[406897673,1772267525338,-500.0,0.00016712,2]
[406897674,1772267525353,-682.38,0.00016712,2]
[406897675,1772267525368,-659.28,0.00016712,2]
[406897676,1772267525383,-728.78,0.00016712,2]
[406897677,1772267525399,-898.93,0.00016712,2]
[406897678,1772267525414,-793.11,0.00016712,2]
[406897679,1772267525630,-1706.3,0.00016712,2]
[406897680,1772267525642,-659.85,0.00016712,2]
[406897681,1772267525653,-1134.79,0.00016712,2]
[406897682,1772267525664,-11125.25,0.00016712,2]
[406897683,1772267525674,-7153.51,0.00016712,2]
[406897684,1772267525684,-648.35,0.00016712,2]
[406897685,1772267525694,-5078.3,0.00016712,2]
[406897686,1772267525704,-683.43,0.00016712,2]
[406897687,1772267525714,-2723.16,0.00016712,2]
[406897688,1772267525724,-500.0,0.00016712,2]
[406897689,1772267525734,-4724.28,0.00016712,2]
[406897690,1772267525743,-500.0,0.00016712,2]
[406897691,1772267525754,-739.63,0.00016712,2]
[406897692,1772267525764,-500.0,0.00016712,2]
[406897693,1772267525774,-500.0,0.00016712,2]
[406897694,1772267525784,-4297.64,0.00016712,2]
[406897695,1772267525794,-737.38,0.00016712,2]
[406897696,1772267525804,-2549.64,0.00016712,2]
[406897697,1772267525814,-500.0,0.00016712,2]
[406897698,1772267525824,-1171.08,0.00016712,2]
[406897699,1772267525834,-2640.18,0.00016712,2]
[406897700,1772267525844,-7472.22,0.00016712,2]
[406897701,1772267525854,-500.0,0.00016712,2]
[406897702,1772267525864,-530.37,0.00016712,2]
[406897703,1772267525875,-1765.65,0.00016712,2]
[406897704,1772267525884,-500.0,0.00016712,2]
[406897705,1772267525894,-200.35585716,0.00016712,2]
[406897706,1772267525904,-1444.95,0.00016712,2]
[406897707,1772267525914,-4088.91,0.00016712,2]
[406897708,1772267525924,-2445.15,0.00016712,2]
[406897709,1772267525934,-2774.65,0.00016712,2]
[406897710,1772267525944,-500.0,0.00016712,2]
[406897711,1772267525954,-3783.55,0.00016712,2]
[406897712,1772267525964,-1333.68,0.00016712,2]
[406897713,1772267525973,-500.0,0.00016712,2]
[406897714,1772267525983,-14153.91,0.00016712,2]
[406897715,1772267525992,-445.58990387,0.00016712,2]
[406897716,1772267526002,-500.0,0.00016712,2]
[406897717,1772267526012,-3218.57,0.00016712,2]
[406897718,1772267526022,-2092.55,0.00016712,2]
[406897719,1772267526032,-639.55199876,0.00016712,2]
[406897720,1772267526042,-2893.22,0.00016712,2]
[406897721,1772267526051,-2259.28,0.00016712,2]
[406897722,1772267526062,-1798.11,0.00016712,2]
[406897723,1772267526072,-540.91,0.00016712,2]
[406897724,1772267526082,-500.0,0.00016712,2]
[406897725,1772267526092,-500.0,0.00016712,2]
[406897726,1772267526101,-16752.77,0.00016712,2]
[406897727,1772267526111,-500.97,0.00016712,2]
[406897728,1772267526121,-526.47,0.00016712,2]
[406897729,1772267526132,-278.98237882,0.00016712,2]
[406897730,1772267526145,-333.65058569,0.00016712,2]
[406897731,1772267526155,-1638.09,0.00016712,2]
[406897732,1772267526165,-4470.34,0.00016712,2]
[406897733,1772267526174,-2160.15,0.00016712,2]
[406897734,1772267526185,-500.0,0.00016712,2]
[406897735,1772267526195,-611.61,0.00016712,2]
[406897736,1772267526204,-500.0,0.00016712,2]
[406897737,1772267526216,-587.54,0.00016712,2]
[406897738,1772267526225,-679.97,0.00016712,2]
[406897739,1772267526235,-62454.68,0.00016712,2]
[406897740,1772267526244,-500.0,0.00016712,2]
[406897741,1772267526254,-4931.54,0.00016712,2]
[406897742,1772267526263,-691.25,0.00016712,2]
[406897743,1772267526273,-2603.07,0.00016712,2]
[406897744,1772267526282,-7026.09,0.00016712,2]
[406897745,1772267526292,-668.0,0.00016712,2]
[406897746,1772267526302,-1193.68,0.00016712,2]
[406897747,1772267526312,-635.83,0.00016712,2]
[406897748,1772267526322,-500.0,0.00016712,2]
[406897749,1772267526331,-500.0,0.00016712,2]
[406897750,1772267526340,-1018.54,0.00016712,2]
[406897751,1772267526350,-214.22063938,0.00016712,2]
[406897752,1772267526359,-8795.12,0.00016712,2]
[406897753,1772267526369,-500.0,0.00016712,2]
[406897754,1772267526379,-511.19,0.00016712,2]
[406897755,1772267526389,-2059.67,0.00016712,2]
[406897756,1772267526398,-500.0,0.00016712,2]
[406897757,1772267526408,-2791.04,0.00016712,2]
[406897758,1772267526419,-500.0,0.00016712,2]
[406897759,1772267526432,-4120.89,0.00016712,2]
[406897760,1772267526451,-316.64502176,0.00016712,2]
[406897761,1772267526461,-738.7,0.00016712,2]
[406897762,1772267526472,-500.0,0.00016712,2]
[406897763,1772267526483,-858.19,0.00016712,2]
[406897764,1772267526493,-1094.77,0.00016712,2]
[406897765,1772267526504,-1558.46,0.00016712,2]
[406897766,1772267526515,-3104.3,0.00016712,2]
[406897767,1772267526525,-500.0,0.00016712,2]
[406897768,1772267526535,-41294.65,0.00016712,2]
[406897769,1772267526545,-500.0,0.00016712,2]
[406897770,1772267526555,-4305.9,0.00016712,2]
[406897771,1772267526569,-1079.08,0.00016712,2]
[406897772,1772267526579,-1590.25,0.00016712,2]
[406897773,1772267526590,-829.59,0.00016712,2]
[406897774,1772267526600,-17553.64,0.00016712,2]
[406897775,1772267526610,-836.94,0.00016712,2]
[406897776,1772267526620,-2501.06,0.00016712,2]
[406897777,1772267526630,-624.89,0.00016712,2]
[406897778,1772267526640,-500.0,0.00016712,2]
[406897779,1772267526660,-500.0,0.00016712,2]
[406897780,1772267526680,-587.66,0.00016712,2]
[406897781,1772267526690,-612.52,0.00016712,2]
[406897782,1772267526701,-798.52,0.00016712,2]
[406897783,1772267526711,-920.96,0.00016712,2]
[406897784,1772267526721,-833.23,0.00016712,2]
[406897785,1772267526731,-502.1,0.00016712,2]
[406897786,1772267526741,-1661.19,0.00016712,2]
[406897787,1772267526751,-884.15,0.00016712,2]
[406897788,1772267526762,-997.87,0.00016712,2]
[406897789,1772267526775,-2806.98,0.00016712,2]
[406897790,1772267526785,-714.12,0.00016712,2]
[406897791,1772267526796,-3389.85,0.00016712,2]
[406897792,1772267526806,-500.0,0.00016712,2]
[406897793,1772267526816,-500.0,0.00016712,2]
[406897794,1772267526826,-736.98,0.00016712,2]
[406897795,1772267526835,-500.0,0.00016712,2]
[406897796,1772267526845,-3040.54,0.00016712,2]
[406897797,1772267526856,-1624.77,0.00016712,2]
[406897798,1772267526866,-8862.41,0.00016712,2]
[406897799,1772267526876,-21682.96,0.00016712,2]
[406897800,1772267526886,-1097.26,0.00016712,2]
[406897801,1772267526896,-500.0,0.00016712,2]
[406897802,1772267526905,-7502.8,0.00016712,2]
[406897803,1772267526915,-500.0,0.00016712,2]
[406897804,1772267526926,-565.02,0.00016712,2]
[406897805,1772267526935,-6625.37,0.00016712,2]
[406897806,1772267526945,-500.0,0.00016712,2]
[406897807,1772267526955,-2462.23,0.00016712,2]
[406897808,1772267526965,-1430.4,0.00016712,2]
[406897809,1772267526975,-1591.21,0.00016712,2]
[406897810,1772267526985,-1097.85,0.00016712,2]
[406897811,1772267526995,-941.74,0.00016712,2]
[406897812,1772267527005,-2991.59,0.00016712,2]
[406897813,1772267527016,-1208.52,0.00016712,2]
[406897814,1772267527026,-1852.72,0.00016712,2]
[406897815,1772267527036,-500.0,0.00016712,2]
[406897816,1772267527046,-2739.1,0.00016712,2]
[406897817,1772267527056,-500.0,0.00016712,2]
[406897818,1772267527066,-3806.49,0.00016712,2]
[406897819,1772267527077,-7703.07,0.00016712,2]
[406897820,1772267527087,-515.24,0.00016712,2]
[406897821,1772267527097,-500.0,0.00016712,2]
[406897822,1772267527107,-244.51566692,0.00016712,2]
[406897823,1772267527118,-1269.75,0.00016712,2]
[406897824,1772267527128,-2065.59,0.00016712,2]
[406897825,1772267527139,-500.0,0.00016712,2]
[406897826,1772267527151,-1723.78,0.00016712,2]
[406897827,1772267527161,-2115.78,0.00016712,2]
[406897828,1772267527171,-500.0,0.00016712,2]
[406897829,1772267527182,-1897.54,0.00016712,2]
[406897830,1772267527192,-3092.48,0.00016712,2]
[406897831,1772267527202,-500.0,0.00016712,2]
[406897832,1772267527212,-922.16,0.00016712,2]
[406897833,1772267527224,-1034.45,0.00016712,2]
[406897834,1772267527234,-4771.37,0.00016712,2]
[406897835,1772267527244,-500.0,0.00016712,2]
[406897836,1772267527254,-1231.85,0.00016712,2]
[406897837,1772267527263,-403.0,0.0001672,2]
[406897838,1772267527275,-403.0,0.0001672,2]
[406897839,1772267527285,-716.0,0.0001672,2]
[406897840,1772267527295,-716.0,0.0001672,2]
[406897841,1772267527305,-716.0,0.0001672,2]
[406897842,1772267527317,-3207.40519818,0.00016848,2]
[406897843,1772267527327,-939.8342441,0.00016854,12]
[406897844,1772267527338,-463.98451705,0.00016873,2]
[406897845,1772267527348,-324.3,0.00016986,2]
[406897846,1772267527358,-607.58,0.00016986,2]
[406897847,1772267527368,-500.0,0.00016986,2]
[406897848,1772267527378,-980.59,0.00016986,2]
[406897849,1772267527389,-500.0,0.00016986,2]
[406897850,1772267527399,-500.0,0.00016986,2]
[406897851,1772267527409,-500.0,0.00016986,2]
[406897852,1772267527419,-1353.85,0.00016986,2]
[406897853,1772267527429,-1322.07,0.00016986,2]
[406897854,1772267527439,-692.0,0.00016986,2]
[406897855,1772267527451,-564.22,0.00016986,2]
[406897856,1772267527461,-520.93,0.00016986,2]
[406897857,1772267527471,-500.0,0.00016986,2]
[406897858,1772267527481,-500.0,0.00016986,2]
[406897859,1772267527491,-500.0,0.00016986,2]
[406897860,1772267527501,-1711.44,0.00016986,2]
[406897861,1772267527511,-2726.35,0.00016986,2]
[406897862,1772267527528,-500.0,0.00016986,2]
[406897863,1772267527538,-1744.45,0.00016986,2]
[406897864,1772267527548,-500.0,0.00016986,2]
[406897865,1772267527559,-1041.8,0.00016986,2]
[406897866,1772267527570,-737.4,0.00016986,2]
[406897867,1772267527580,-2718.46,0.00016986,2]
[406897868,1772267527590,-770.65,0.00016986,2]
[406897869,1772267527599,-902.4,0.00016986,2]
[406897870,1772267527610,-989.47,0.00016986,2]
[406897871,1772267527620,-558.27,0.00016986,2]
[406897872,1772267527630,-603.96,0.00016986,2]
[406897873,1772267527641,-500.58,0.00016986,2]
[406897874,1772267527651,-2062.12,0.00016986,2]
[406897875,1772267527661,-719.5,0.00016986,2]
[406897876,1772267527671,-525.56,0.00016986,2]
[406897877,1772267527681,-500.0,0.00016986,2]
[406897878,1772267527691,-500.0,0.00016986,2]
[406897879,1772267527701,-546.89,0.00016986,2]
[406897880,1772267527710,-1727.31,0.00016986,2]
[406897881,1772267527720,-255.83269356,0.00016986,2]
[406897882,1772267527730,-514.02,0.00016986,2]
[406897883,1772267527739,-860.84,0.00016986,2]
[406897884,1772267527749,-955.26,0.00016986,2]
[406897885,1772267527759,-500.0,0.00016986,2]
[406897886,1772267527772,-725.73,0.00016986,2]
[406897887,1772267527781,-914.38,0.00016986,2]
[406897888,1772267527791,-1116.21,0.00016986,2]
[406897889,1772267527800,-579.95,0.00016986,2]
[406897890,1772267527810,-500.0,0.00016986,2]
[406897891,1772267527819,-1326.22,0.00016986,2]
[406897892,1772267527829,-1036.26,0.00016986,2]
[406897893,1772267527839,-500.0,0.00016986,2]
[406897894,1772267527849,-936.85,0.00016986,2]
[406897895,1772267527860,-500.0,0.00016986,2]
[406897896,1772267527869,-547.18,0.00016986,2]
[406897897,1772267527880,-1250.68,0.00016986,2]
[406897898,1772267527889,-1196.3,0.00016986,2]
[406897899,1772267527899,-1024.08,0.00016986,2]
[406897900,1772267527910,-898.6,0.00016986,2]
[406897901,1772267527919,-500.0,0.00016986,2]
[406897902,1772267527929,-500.0,0.00016986,2]
[406897903,1772267527939,-609.4,0.00016986,2]
[406897904,1772267527949,-500.0,0.00016986,2]
[406897905,1772267527959,-1312.05,0.00016986,2]
[406897906,1772267527969,-937.86,0.00016986,2]
[406897907,1772267527979,-651.8,0.00016986,2]
[406897908,1772267527988,-500.0,0.00016986,2]
[406897909,1772267527998,-500.0,0.00016986,2]
[406897910,1772267528007,-500.0,0.00016986,2]
[406897911,1772267528020,-517.11,0.00016986,2]
[406897912,1772267528029,-500.0,0.00016986,2]
[406897913,1772267528039,-500.0,0.00016986,2]
[406897914,1772267528049,-500.0,0.00016986,2]
[406897915,1772267528059,-1446.65,0.00016986,2]
[406897916,1772267528068,-500.0,0.00016986,2]
[406897917,1772267528078,-1733.53,0.00016986,2]
[406897918,1772267528089,-1436.12,0.00016986,2]
[406897919,1772267528099,-685.31,0.00016986,2]
[406897920,1772267528108,-580.66,0.00016986,2]
[406897921,1772267528118,-571.4,0.00016986,2]
[406897922,1772267528128,-864.92,0.00016986,2]
[406897923,1772267528141,-846.6,0.00016986,2]
[406897924,1772267528151,-1593.78,0.00016986,2]
[406897925,1772267528160,-750.44,0.00016986,2]
[406897926,1772267528171,-500.0,0.00016986,2]
[406897927,1772267528181,-1521.42,0.00016986,2]
[406897928,1772267528345,-1247.19,0.00016986,2]
[406897929,1772267528355,-705.82,0.00016986,2]
[406897930,1772267528365,-500.0,0.00016986,2]
[406897931,1772267528375,-529.62,0.00016986,2]
[406897932,1772267528385,-500.0,0.00016986,2]
[406897933,1772267528395,-745.32,0.00016986,2]
[406897934,1772267528404,-1605.01,0.00016986,2]
[406897935,1772267528414,-500.0,0.00016986,2]
[406897936,1772267528424,-1610.8,0.00016986,2]
[406897937,1772267528434,-500.0,0.00016986,2]
[406897938,1772267528444,-1001.72,0.00016986,2]
[406897939,1772267528454,-1059.56,0.00016986,2]
[406897940,1772267528464,-627.88,0.00016986,2]
[406897941,1772267528474,-500.0,0.00016986,2]
[406897942,1772267528484,-917.08,0.00016986,2]
[406897943,1772267528493,-500.0,0.00016986,2]
[406897944,1772267528503,-529.27,0.00016986,2]
[406897945,1772267528512,-927.57,0.00016986,2]
[406897946,1772267528524,-650.87,0.00016986,2]
[406897947,1772267528534,-661.99,0.00016986,2]
[406897948,1772267528544,-500.0,0.00016986,2]
[406897949,1772267528555,-1219.63,0.00016986,2]
[406897950,1772267528565,-500.0,0.00016986,2]
[406897951,1772267528574,-818.16,0.00016986,2]
[406897952,1772267528584,-564.11,0.00016986,2]
[406897953,1772267528595,-500.0,0.00016986,2]
[406897954,1772267528606,-500.0,0.00016986,2]
[406897955,1772267528615,-500.0,0.00016986,2]
[406897956,1772267528625,-773.68,0.00016986,2]
[406897957,1772267528635,-500.0,0.00016986,2]
[406897958,1772267528645,-1058.67,0.00016986,2]
[406897959,1772267528655,-544.13,0.00016986,2]
[406897960,1772267528665,-500.0,0.00016986,2]
[406897961,1772267528675,-1354.43,0.00016986,2]
[406897962,1772267528685,-500.0,0.00016986,2]
[406897963,1772267528695,-500.0,0.00016986,2]
[406897964,1772267528704,-947.35,0.00016986,2]
[406897965,1772267528714,-500.0,0.00016986,2]
[406897966,1772267528724,-577.2,0.00016986,2]
[406897967,1772267528734,-617.88,0.00016986,2]
[406897968,1772267528744,-1264.55,0.00016986,2]